fUSD/lending_fUSD_20240912
["ID","MTS","AMOUNT","RATE_DAILY","PERIOD"]
[337853221,1726157438974,-201.0,0.0001474,2]
[337853223,1726157438983,-556.42836445,0.00014745,2]
[337853225,1726157438994,-311.8687508,0.00014745,2]
[337853227,1726157439004,-212.0,0.0001475,2]
[337853229,1726157439014,-219.0,0.0001475,2]
[337853231,1726157439024,-150.0,0.00014769,2]
[337853232,1726157439034,-210.34,0.0001477,3]
[337853234,1726157439043,-631.04,0.0001477,3]
[337853236,1726157439052,-77.55240622,0.00014773,2]
[337853239,1726157439064,-422.44759378,0.00014773,2]
[337853241,1726157439074,-57250.3165043,0.0001478,2]
[337853243,1726157439085,-2646.2132724,0.0001478,2]
[337853246,1726157439104,-296.50190526,0.0001478,2]
[337853248,1726157439115,-321.35389369,0.0001478,2]
[337853250,1726157439126,-189485.61442435,0.0001478,2]
[337853252,1726157439135,-19346.0504363,0.0001478,2]
[337853254,1726157439145,-9811.1289394,0.0001478,2]
[337853256,1726157439154,-151.49,0.0001478,2]
[337853258,1726157439164,-341.47763238,0.00014783,2]
[337853260,1726157439173,-500.0,0.00014783,2]
[337853262,1726157439182,-500.0,0.00014783,2]
[337853264,1726157439192,-412.9949526,0.00014783,2]
[337853266,1726157439201,-151.49,0.00014784,2]
[337853268,1726157439211,-16962.938341,0.00014784,2]
[337853270,1726157439222,-14579.8262457,0.00014784,2]
[337853272,1726157439232,-12196.7141505,0.00014784,2]
[337853273,1726157439241,-9813.6020552,0.00014784,2]
[337853274,1726157439251,-7430.4899599,0.00014784,2]
[337853275,1726157439261,-8602.5608071,0.00014784,2]
[337853276,1726157439271,-7393.9926748,0.00014784,2]
[337853277,1726157439280,-6185.4245424,0.00014784,2]
[337853278,1726157439290,-4976.8564101,0.00014784,2]
[337853279,1726157439299,-3768.2882777,0.00014784,2]
[337853280,1726157439309,-3429.65967621,0.0001479,5]
[337853281,1726157439321,-702.12138426,0.0001479,5]
[337853282,1726157439334,-28868.12484291,0.0001479,5]
[337853331,1726157439877,-86250.20132262,0.0001479,5]
[337853333,1726157439888,-151.0,0.0001479,2]
[337853335,1726157439898,-151.0,0.0001479,2]
[337853337,1726157439908,-151.218999,0.0001479,2]
[337853339,1726157439919,-70650.6725695,0.0001479,2]
[337853341,1726157439929,-150.01,0.00014793,2]
[337853343,1726157439941,-10345.4932587,0.00014793,2]
[337853345,1726157439951,-150.51745403,0.00014793,2]
[337853347,1726157439961,-905.0,0.00014793,2]
[337853349,1726157439971,-62379.18681198,0.00014794,2]
[337853351,1726157439983,-5994.33161275,0.00014794,2]
[337853355,1726157440011,-352.75909744,0.00014794,2]
[337853357,1726157440023,-4881.52854973,0.00014794,2]
[337853360,1726157440035,-865.765,0.00014794,2]
[337853371,1726157440139,-298.31412405,0.00014794,2]
[337853374,1726157440151,-18918.55938786,0.00014794,2]
[337853376,1726157440163,-15607.50524251,0.00014794,2]
[337853378,1726157440175,-1391.73850551,0.00014794,2]
[337853383,1726157440211,-707.12336694,0.00014794,2]
[337853385,1726157440221,-338.08742717,0.00014794,2]
[337853387,1726157440232,-900.4367016,0.00014794,2]
[337853389,1726157440244,-342.108,0.00014794,2]
[337853391,1726157440255,-1109.54057501,0.00014794,2]
[337853394,1726157440270,-2961.95,0.00014794,2]
[337853396,1726157440282,-527.39556223,0.00014794,2]
[337853399,1726157440306,-1067.39875399,0.00014794,2]
[337853402,1726157440317,-387.72733961,0.00014794,2]
[337853404,1726157440329,-4905.37844259,0.00014794,2]
[337853711,1726157443316,-305.9549999,0.00014794,2]
[337853713,1726157443327,-1136.44,0.00014794,2]
[337853715,1726157443346,-511.149995,0.00014794,2]
[337853923,1726157445742,-402.8864079,0.00014794,2]
[337853924,1726157445754,-1044.4857721,0.00014794,2]
[337853925,1726157445796,-7859.65779715,0.00014794,2]
[337854353,1726157550458,150.0,0.00010959,2]
[337854354,1726157550479,140.89,0.00010959,2]
[337854357,1726157742710,798.67671011,0.00011,2]
[337854358,1726157742732,251.32328989,0.00011,2]
[337854359,1726157742864,281.59,0.00011796,2]
[337854360,1726158076120,212.08,0.00010959,2]
[337854361,1726158076322,-162.63,0.00013572,2]
[337854363,1726158308235,150.0,0.00013,2]
[337854364,1726158308262,150.0,0.00013,2]
[337854365,1726158308292,150.0,0.00013,2]
[337854366,1726158308316,150.0,0.00013,2]
[337854367,1726158308341,217.14376073,0.00013,2]
[337854368,1726158308364,150.0,0.00013,2]
[337854369,1726158308393,249467.08671011,0.00013,2]
[337854370,1726158308418,250000.0,0.00013,2]
[337854371,1726158326656,150.0,0.00011717,2]
[337854372,1726158326677,125.4,0.00011717,2]
[337854375,1726158371873,150.0,0.00010959,2]
[337854376,1726158371895,150.0,0.00010959,2]
[337854377,1726158371916,150.0,0.00010959,2]
[337854378,1726158371938,150.0,0.00010959,2]
[337854379,1726158371959,150.0,0.00010959,2]
[337854380,1726158371982,76.54,0.00010959,2]
[337854381,1726158400547,150.0,0.00010959,2]
[337854382,1726158400569,150.0,0.00010959,2]
[337854383,1726158400590,150.0,0.00010959,2]
[337854384,1726158400612,50.0,0.00010959,2]
[337854385,1726158401626,100.0,0.00010959,2]
[337854386,1726158401647,150.0,0.00010959,2]
[337854387,1726158401668,150.0,0.00010959,2]
[337854388,1726158401689,100.0,0.00010959,2]
[337854409,1726158532135,-520.68056739,0.00012899,2]
[337854410,1726158532161,-710.02876566,0.000129,2]
[337854411,1726158532189,-175.18324583,0.000129,2]
[337854412,1726158532215,-1028.50102205,0.0001299,2]
[337854413,1726158532244,-218.99364362,0.00012999,2]
[337854414,1726158532271,-332.02068214,0.00012999,2]
[337854415,1726158532297,-580.32321266,0.00012999,2]
[337854416,1726158532322,-150.0,0.00012999,2]
[337854417,1726158532350,-0.89684666,0.00013,2]
[337854418,1726158532389,-3716.62798601,0.00013,2]
[337854419,1726158532431,-2195.26330995,0.00013,2]
[337854425,1726158607240,-163.5,0.0001289,2]
[337854426,1726158607266,-747.01680811,0.000129,2]
[337854444,1726158631837,-163.37,0.0001289,2]
[337854445,1726158631847,-848.8428544,0.000129,2]
[337854446,1726158631858,-299.25245189,0.000129,2]
[337854447,1726158631937,-192.2229856,0.000129,2]
[337854448,1726158631946,-566.33401345,0.000129,2]
[337854449,1726158631956,-416.8955371,0.00012973,2]
[337854450,1726158631966,-163.37,0.0001298,2]
[337854451,1726158631975,-152.16,0.0001299,2]
[337854452,1726158631984,-163.37,0.0001299,2]
[337854453,1726158631994,-163.37,0.0001299,2]
[337854454,1726158632003,-163.37,0.0001299,2]
[337854455,1726158632013,-163.37,0.0001299,2]
[337854456,1726158632022,-163.37,0.0001299,2]
[337854457,1726158632032,-152.16,0.0001299,2]
[337854458,1726158632042,-152.16,0.0001299,2]
[337854459,1726158632051,-152.16,0.0001299,2]
[337854460,1726158632061,-152.16,0.0001299,2]
[337854461,1726158632071,-152.16,0.0001299,2]
[337854462,1726158632082,-152.16,0.0001299,2]
[337854463,1726158632092,-152.16,0.0001299,2]
[337854464,1726158632102,-152.16,0.0001299,2]
[337854465,1726158632112,-152.16,0.0001299,2]
[337854466,1726158632121,-152.16,0.0001299,2]
[337854467,1726158632131,-152.16,0.0001299,2]
[337854468,1726158632141,-152.16,0.0001299,2]
[337854470,1726158632151,-152.16,0.0001299,2]
[337854472,1726158632171,-152.16,0.0001299,2]
[337854474,1726158632180,-152.16,0.0001299,2]
[337854476,1726158632190,-152.16,0.0001299,2]
[337854477,1726158632199,-152.16,0.0001299,2]
[337854478,1726158632209,-152.16,0.0001299,2]
[337854479,1726158632219,-152.16,0.0001299,2]
[337854480,1726158632228,-152.16,0.0001299,2]
[337854481,1726158632238,-152.16,0.0001299,2]
[337854482,1726158632248,-152.16,0.0001299,2]
[337854483,1726158632257,-152.16,0.0001299,2]
[337854484,1726158632267,-152.16,0.0001299,2]
[337854485,1726158632276,-152.16,0.0001299,2]
[337854486,1726158632287,-152.16,0.0001299,2]
[337854487,1726158632296,-152.16,0.0001299,2]
[337854488,1726158632305,-152.16,0.0001299,2]
[337854489,1726158632315,-152.16,0.0001299,2]
[337854490,1726158632325,-152.16,0.0001299,2]
[337854491,1726158632334,-152.16,0.0001299,2]
[337854492,1726158632345,-152.16,0.0001299,2]
[337854493,1726158632354,-152.16,0.0001299,2]
[337854494,1726158632363,-152.16,0.0001299,2]
[337854495,1726158632373,-152.16,0.0001299,2]
[337854496,1726158632382,-152.16,0.0001299,2]
[337854497,1726158632391,-202.05770887,0.0001299,2]
[337854498,1726158632400,-202.05770887,0.0001299,2]
[337854499,1726158632414,-95496.77204561,0.00013,2]
[337854500,1726158632425,-12978.10293693,0.00013,2]
[337854501,1726158632436,-705.1981222,0.00013,2]
[337854502,1726158632447,-1285.63,0.00013,2]
[337854503,1726158632465,-891.15718249,0.00013,2]
[337854504,1726158632594,-3118.66555,0.00013,2]
[337854513,1726158637809,-364.55288824,0.00013,2]
[337854514,1726158638084,-1214.52265281,0.00013,2]
[337854515,1726158638106,-1231.76374629,0.00013,2]
[337854516,1726158638117,-31245.01318098,0.00013,2]
[337854517,1726158638140,-373.42347452,0.00013,2]
[337854518,1726158638186,-2533.49215983,0.00013,2]
[337854519,1726158638197,-334.70560516,0.00013,2]
[337854529,1726158639798,-834.30484756,0.00013,2]
[337854530,1726158639809,-390181.60654942,0.00013,2]
[337854531,1726158639819,-2519182.97609819,0.00013,2]
[337854532,1726158640034,-541.90137085,0.00013,2]
[337854533,1726158640045,-1739.8323678,0.00013,2]
[337854534,1726158640057,-2569.0844364,0.00013,2]
[337854535,1726158640071,-555.37481883,0.00013,2]
[337854536,1726158640082,-40435.81690446,0.00013,2]
[337854561,1726158643201,-57354.6031576,0.00013,2]
[337854562,1726158643213,-33679.6911525,0.00013,2]
[337854563,1726158643224,-1363.125,0.00013,2]
[337854564,1726158643241,-22982.3562768,0.00013,2]
[337854565,1726158643252,-8474.40968489,0.00013,2]
[337854566,1726158643264,-2894.76552035,0.00013,2]
[337854567,1726158643290,-2480922.72944528,0.00013,2]
[337854568,1726158643301,-6136.255125,0.00013,2]
[337854569,1726158643312,-28350.0,0.00013,2]
[337854570,1726158643324,-1067.5,0.00013,2]
[337854571,1726158643417,-9480.11647319,0.00013,2]
[337854572,1726158643428,-116260.0,0.00013,2]
[337854573,1726158643440,-129280.0,0.00013,2]
[337854605,1726158646093,-7233.95473984,0.00013,2]
[337854606,1726158646104,-3352.26928,0.00013,2]
[337854607,1726158646115,-21189.83855006,0.00013,2]
[337854608,1726158646126,-32392.57905511,0.00013,2]
[337854609,1726158646141,-583.7999973,0.00013,2]
[337854610,1726158646151,-3234.44000024,0.00013,2]
[337854611,1726158646162,-547.51,0.00013,2]
[337854612,1726158646174,-2064.71264005,0.00013,2]
[337854613,1726158646185,-611.81478294,0.00013,2]
[337854615,1726158646529,-150.0,0.00013,2]
[337854666,1726158649540,-150.0,0.00013,2]
[337854740,1726158650234,-172.14012813,0.00013,2]
[337854834,1726158651162,-239.35706926,0.00013,2]
[337854854,1726158651781,-223.27966,0.000129,2]
[337854855,1726158652201,-174.37,0.000129,2]
[337854856,1726158652717,-574.88706926,0.000129,2]
[337854857,1726158664618,150.0,0.00011052,2]
[337854858,1726158664639,189.43191317,0.00011052,2]
[337854859,1726158664660,150.0,0.00011052,2]
[337854860,1726158664681,10.56808683,0.00011052,2]
[337854861,1726158664905,150.0,0.00011052,2]
[337854862,1726158664926,150.0,0.00011052,2]
[337854863,1726158664947,150.0,0.00011052,2]
[337854864,1726158665215,50.0,0.00011052,2]
[337854867,1726158746801,150.0,0.00010959,2]
[337854868,1726158746824,19.4,0.00010959,2]
[337854869,1726158761317,150.0,0.0001103,2]
[337854871,1726158761338,28.25845578,0.0001103,2]
[337854872,1726158763529,-177.15852496,0.000128,2]
[337854873,1726158764117,-150.0,0.000128,2]
[337854874,1726158764568,-22.08187504,0.000128,2]
[337854877,1726158876101,308.13,0.00011449,2]
[337854878,1726159015266,150.0,0.00011449,2]
[337854879,1726159015287,81.0,0.00011449,2]
[337854881,1726159290604,150.0,0.00010959,2]
[337854882,1726159290627,4.97,0.00010959,2]
[337854883,1726159406137,150.0,0.00010246,2]
[337854884,1726159406157,150.0,0.00010246,2]
[337854885,1726159406178,7.85,0.00010246,2]
[337854886,1726159418762,150.0,0.00012142,2]
[337854887,1726159418792,97.37,0.00012142,2]
[337854888,1726159440489,150.0,0.00012106,2]
[337854889,1726159451009,150.0,0.0001194,2]
[337854890,1726159451029,150.0,0.0001194,2]
[337854891,1726159451049,150.0,0.0001194,2]
[337854892,1726159451069,150.0,0.0001194,2]
[337854893,1726159451089,150.0,0.0001194,2]
[337854894,1726159451109,150.0,0.0001194,2]
[337854895,1726159451130,150.0,0.0001194,2]
[337854896,1726159451152,150.0,0.0001194,2]
[337854897,1726159451173,150.0,0.0001194,2]
[337854898,1726159451193,61.67,0.0001194,2]
[337854899,1726159469081,150.0,0.0001194,2]
[337854900,1726159469101,150.0,0.0001194,2]
[337854901,1726159469120,150.0,0.0001194,2]
[337854902,1726159469140,65.72,0.0001194,2]
[337854903,1726159470810,-155.36,0.00012177,2]
[337854905,1726159481474,-155.36,0.00012184,2]
[337854906,1726159482182,-155.36,0.00012191,2]
[337854908,1726159492829,-179.8398969,0.00012192,2]
[337854910,1726159496775,16702.3,0.0001204,2]
[337854911,1726159504977,150.0,0.000102,5]
[337854912,1726159505002,150.0,0.000102,5]
[337854914,1726159515766,-150.0,0.00012192,2]
[337854917,1726159519906,250.0,0.00012002,2]
[337854924,1726159550208,150.0,0.00011,2]
[337854925,1726159550229,150.0,0.00011,2]
[337854926,1726159550249,150.0,0.00011,2]
[337854927,1726159550269,150.0,0.00011,2]
[337854928,1726159550289,150.0,0.00011,2]
[337854929,1726159550309,193.99923384,0.00011,2]
[337854930,1726159550332,106.00076616,0.00011,2]
[337854931,1726159551633,150.0,0.0001197,2]
[337854933,1726159572554,150.0,0.0001197,2]
[337854934,1726159572575,100.0,0.0001197,2]
[337854935,1726159580173,150.0,0.0001103,2]
[337854936,1726159580197,150.0,0.0001103,2]
[337854937,1726159580219,150.0,0.0001103,2]
[337854938,1726159580239,50.0,0.0001103,2]
[337854940,1726159601087,1867.61,0.0001194,2]
[337854941,1726159609180,150.0,0.0001103,2]
[337854942,1726159609205,171.74154422,0.0001103,2]
[337854943,1726159620127,500.0,0.0001103,2]
[337854954,1726159729909,150.0,0.00012051,2]
[337854955,1726159729931,100.0,0.00012051,2]
[337854956,1726159787748,150.0,0.00010998,2]
[337854957,1726159787769,104.27099637,0.00010998,2]
[337854958,1726159811371,1926.03,0.00012086,2]
[337854960,1726159831984,-162.68,0.00012188,2]
[337854961,1726159831993,-155.36,0.00012198,2]
[337854962,1726159832004,-155.36,0.00012204,2]
[337854963,1726159832013,-155.36,0.00012211,2]
[337854964,1726159832023,-17307.62180821,0.00012217,2]
[337854965,1726159832120,-940.47405097,0.00012217,2]
[337854966,1726159832132,-1709.87048133,0.00012217,2]
[337854967,1726159832181,-3700.0,0.00012217,2]
[337854968,1726159832213,-601.87803083,0.00012217,2]
[337854969,1726159832223,-300.0,0.00012217,2]
[337854970,1726159832232,-155.36,0.00012218,2]
[337854971,1726159832241,-155.36,0.00012225,2]
[337854972,1726159832251,-155.36,0.00012232,2]
[337854973,1726159832259,-4232.43,0.00012232,2]
[337854974,1726159832268,-499.99,0.00012238,2]
[337854975,1726159832278,-2369.59,0.00012238,2]
[337854976,1726159832288,-409.01,0.00012238,2]
[337854977,1726159832297,-155.36,0.00012238,2]
[337854978,1726159832307,-307.85,0.0001251,2]
[337854979,1726159832317,-160.207,0.0001274,2]
[337854980,1726159832326,-974.0,0.00012741,2]
[337854981,1726159832336,-150.0,0.0001287,2]
[337854982,1726159832345,-1615.15768887,0.000129,2]
[337854983,1726159832355,-495.54226176,0.000129,2]
[337854984,1726159832365,-175.18324582,0.000129,2]
[337854985,1726159832375,-153.86,0.0001299,2]
[337854986,1726159832384,-153.86,0.0001299,2]
[337854987,1726159832394,-153.86,0.0001299,2]
[337854988,1726159832403,-216.74872697,0.0001299,2]
[337854989,1726159832413,-150.0,0.00012998,2]
[337854990,1726159832422,-1000.0,0.00012999,2]
[337854991,1726159832431,-1000.0,0.00012999,2]
[337854992,1726159832440,-1000.0,0.00012999,2]
[337854993,1726159832450,-1031.54405097,0.00012999,3]
[337854994,1726159832459,-172.76901356,0.00012999,2]
[337854995,1726159832469,-222171.60973113,0.00013,2]
[337854996,1726159832482,-1451.24090158,0.00013,2]
[337854997,1726159832493,-1098.16840901,0.00013,2]
[337855003,1726159837943,-683.52597038,0.00013,2]
[337855004,1726159838026,-1500.0,0.00013,2]
[337855005,1726159838111,-27789.840896,0.00013,2]
[337855006,1726159838123,-2589.73187169,0.00013,2]
[337855007,1726159838134,-255.53745705,0.00013,2]
[337855008,1726159838161,-1458.4,0.00013,2]
[337855071,1726159840022,-440.88639047,0.00013,2]
[337855072,1726159840033,-1008.075,0.00013,2]
[337855073,1726159840135,-28413.12954961,0.00013,2]
[337855364,1726159843088,-720.70825157,0.00013,2]
[337855459,1726159846284,-5876.27098392,0.00013,2]
[337855460,1726159846294,-519574.20848791,0.00013,2]
[337855461,1726159846342,-278.93838436,0.00013,2]
[337855462,1726159877374,150.0,0.00010998,2]
[337855463,1726159877396,150.0,0.00010998,2]
[337855464,1726159877417,150.0,0.00010998,2]
[337855465,1726159877437,50.0,0.00010998,2]
[337855466,1726159922851,150.0,0.00011464,2]
[337855467,1726159922874,150.0,0.00011464,2]
[337855468,1726159922896,45.12,0.00011464,2]
[337855469,1726159923378,104.88,0.00010959,2]
[337855470,1726159923403,47.06,0.00010959,2]
[337855472,1726159963692,-199.03841765,0.00012634,2]
[337855473,1726159964138,-117.03111955,0.00012634,2]
[337855475,1726160186557,150.0,0.00010998,2]
[337855476,1726160186580,129.38265616,0.00010998,2]
[337855485,1726160219190,250.0,0.00010959,2]
[337855486,1726160232020,500.0,0.00010998,2]
[337855487,1726160250877,500.0,0.00010998,2]
[337855488,1726160269503,150.0,0.00010998,2]
[337855489,1726160269524,150.0,0.00010998,2]
[337855490,1726160269546,150.0,0.00010998,2]
[337855491,1726160269567,50.0,0.00010998,2]
[337855492,1726160276432,150.0,0.00010998,2]
[337855493,1726160276456,150.0,0.00010998,2]
[337855494,1726160276478,150.0,0.00010998,2]
[337855495,1726160276500,50.0,0.00010998,2]
[337855496,1726160330496,150.0,0.00012104,2]
[337855497,1726160330522,101.39949522,0.00012104,2]
[337855498,1726160333425,500.0,0.00010998,2]
[337855499,1726160350236,150.0,0.00010998,2]
[337855500,1726160350266,150.0,0.00010998,2]
[337855501,1726160350290,150.0,0.00010998,2]
[337855502,1726160350311,50.0,0.00010998,2]
[337855503,1726160384000,150.0,0.00010998,2]
[337855504,1726160384020,150.0,0.00010998,2]
[337855505,1726160384040,150.0,0.00010998,2]
[337855506,1726160384061,50.0,0.00010998,2]
[337855508,1726160411735,-532.67818431,0.000123,2]
[337855509,1726160430701,469.28,0.00010959,2]
[337855510,1726160487797,903.78,0.00011012,2]
[337855511,1726160667362,250.0,0.00012035,2]
[337855512,1726160675808,175.99,0.0001216,2]
[337855514,1726160697237,562.43,0.00012035,2]
[337855515,1726160706562,173.73,0.00012163,2]
[337855524,1726160749633,200.0,0.00012035,2]
[337855525,1726160761396,1073.301799,0.00012107,2]
[337855527,1726160820050,500.0,0.00010958,2]
[337855528,1726160821828,183.00821368,0.00012068,2]
[337855532,1726160840539,500.0,0.00010958,2]
[337855535,1726160847264,500.0,0.00010958,2]
[337855541,1726160858659,250.0,0.00012147,2]
[337855542,1726160878508,1106.4,0.00012147,2]
[337855543,1726160956459,467.78,0.00012035,2]
[337855546,1726160986621,-3827.77683741,0.00012168,2]
[337855547,1726160986711,-2870.22745316,0.00012168,2]
[337855548,1726160988082,500.0,0.00012147,2]
[337855549,1726161003162,162.7,0.00012158,2]
[337855550,1726161003364,162.7,0.00012158,2]
[337855551,1726161011598,-300.0,0.00012167,2]
[337855552,1726161011627,-3661.73692323,0.00012168,2]
[337855553,1726161011702,-3042.26673181,0.00012168,2]
[337855554,1726161015166,173.93,0.00012035,2]
[337855555,1726161015723,173.93,0.00012038,2]
[337855556,1726161015842,173.93,0.00012041,2]
[337855557,1726161016381,173.93,0.00012045,2]
[337855558,1726161016434,173.93,0.00012048,2]
[337855559,1726161016587,173.93,0.00012051,2]
[337855560,1726161016975,173.93,0.00012054,2]
[337855561,1726161017205,173.93,0.00012057,2]
[337855562,1726161017489,173.93,0.0001206,2]
[337855563,1726161017706,173.93,0.00012064,2]
[337855564,1726161017970,173.93,0.00012067,2]
[337855565,1726161018246,173.93,0.0001207,2]
[337855566,1726161018462,173.93,0.00012073,2]
[337855567,1726161018687,173.93,0.00012076,2]
[337855568,1726161018934,173.93,0.00012079,2]
[337855569,1726161019376,173.93,0.00012083,2]
[337855570,1726161019590,173.93,0.00012086,2]
[337855571,1726161019835,173.93,0.00012089,2]
[337855572,1726161020061,173.93,0.00012092,2]
[337855573,1726161020333,173.93,0.00012095,2]
[337855585,1726161032369,-7206.18836775,0.00012168,2]
[337855586,1726161032407,-2386.36368664,0.00012168,2]
[337855587,1726161032416,-150.0,0.00012174,2]
[337855588,1726161032425,-318.23781336,0.00012175,2]
[337855617,1726161038402,-785.78700674,0.00012175,2]
[337855618,1726161038418,-748.3951799,0.00012175,2]
[337855620,1726161038427,-250.0,0.00012175,2]
[337855621,1726161038438,-349.2404,0.000122,2]
[337855622,1726161038448,-3815.36442009,0.000122,2]
[337855625,1726161038558,-25866.6338599,0.000122,2]
[337855626,1726161038567,-220.47121388,0.000123,2]
[337855627,1726161038577,-192.24,0.00012742,2]
[337855628,1726161038586,-514.9049,0.0001284,2]
[337855629,1726161038599,-1863.73474213,0.000129,2]
[337855630,1726161038608,-1270.59666,0.0001291,2]
[337855631,1726161038617,-150.99,0.0001293,2]
[337855632,1726161038626,-351.01,0.0001293,2]
[337855633,1726161038635,-499.99,0.0001293,2]
[337855634,1726161038646,-297.76,0.0001293,2]
[337855635,1726161038656,-1270.59665,0.0001299,2]
[337855636,1726161038668,-1000.0,0.00012999,2]
[337855637,1726161038678,-1000.0,0.00012999,2]
[337855638,1726161038688,-825.37832583,0.00012999,2]
[337855639,1726161038698,-225688.52076712,0.00013,2]
[337855640,1726161038707,-1100.0,0.00013,2]
[337855641,1726161038718,-1270.59665,0.00013,2]
[337855642,1726161038727,-1270.59665,0.00013,2]
[337855643,1726161038737,-1270.59665,0.0001307,2]
[337855644,1726161038747,-1863.73474213,0.00013099,2]
[337855645,1726161038757,-1270.59666,0.0001315,2]
[337855646,1726161038767,-150.0,0.00013151,2]
[337855647,1726161038776,-150.0,0.00013151,2]
[337855648,1726161038786,-427.76,0.00013151,2]
[337855649,1726161038795,-150.0,0.00013151,2]
[337855650,1726161038805,-426.76,0.00013151,2]
[337855651,1726161038816,-150.0,0.00013151,2]
[337855652,1726161038827,-150.0,0.00013151,2]
[337855653,1726161038837,-150.0,0.00013181,2]
[337855654,1726161038847,-150.0,0.00013193,2]
[337855655,1726161038856,-427.76,0.000132,2]
[337855656,1726161038867,-150.0,0.000132,2]
[337855657,1726161038877,-150.0,0.000132,2]
[337855658,1726161038886,-150.0,0.000132,2]
[337855659,1726161038896,-150.0,0.000132,2]
[337855660,1726161038906,-150.0,0.000132,2]
[337855661,1726161038917,-427.76,0.000132,2]
[337855662,1726161038926,-150.0,0.00013206,2]
[337855663,1726161038936,-150.0,0.00013243,2]
[337855664,1726161038945,-255.0,0.00013257,2]
[337855665,1726161038955,-150.0,0.00013267,2]
[337855666,1726161038964,-150.0,0.00013274,2]
[337855667,1726161038974,-150.0,0.00013274,2]
[337855668,1726161038983,-626.27,0.00013276,2]
[337855669,1726161038992,-903.78,0.00013276,2]
[337855670,1726161039001,-150.0,0.00013282,2]
[337855671,1726161039011,-942.67,0.00013283,2]
[337855672,1726161039021,-150.0,0.0001329,2]
[337855673,1726161039030,-214.28,0.00013291,2]
[337855674,1726161039039,-150.0,0.00013294,2]
[337855675,1726161039049,-174.37,0.00013299,2]
[337855676,1726161039059,-1863.73474213,0.00013299,2]
[337855677,1726161039071,-150.0,0.000133,2]
[337855678,1726161039080,-427.76,0.000133,2]
[337855679,1726161039089,-300.0,0.000133,2]
[337855680,1726161039099,-609.0,0.000133,2]
[337855681,1726161039109,-150.0,0.000133,2]
[337855682,1726161039118,-150.0,0.000133,2]
[337855683,1726161039128,-225.80218857,0.00013305,2]
[337855684,1726161039139,-1000.0,0.00013312,2]
[337855685,1726161039149,-420.0,0.00013354,2]
[337855686,1726161039159,-150.0,0.0001337,2]
[337855687,1726161039168,-150.0,0.00013388,2]
[337855688,1726161039177,-150.0,0.00013396,2]
[337855689,1726161039187,-752.67,0.000134,2]
[337855690,1726161039196,-752.67,0.000134,2]
[337855691,1726161039205,-483.37,0.000134,2]
[337855692,1726161039214,-150.0,0.00013401,2]
[337855693,1726161039224,-150.0,0.00013425,2]
[337855694,1726161039234,-653.43,0.00013427,2]
[337855695,1726161039243,-157.28,0.00013444,2]
[337855696,1726161039252,-1863.73474213,0.00013498,2]
[337855697,1726161039261,-173.73,0.00013683,2]
[337855698,1726161039271,-1863.73474213,0.00013697,2]